bitfinex-derivatives/quotes_ETHF0:USTF0_20250918
["timestamp","ask_amount","ask_price","bid_price","bid_amount"]
[1758222289295,0.4856,4612.0,4611.9,1.30779]
[1758222289591,0.87568,4612.0,4611.9,0.9177]
[1758222289796,1.20178,4612.0,4611.9,0.9177]
[1758222290294,1.20178,4612.0,4611.9,0.6127]
[1758222291590,0.39011,4611.7,4611.5,0.0216]
[1758222291897,1.08501,4611.7,4611.6,0.4176]
[1758222292587,0.6949,4611.7,4611.6,0.4176]
[1758222293285,1.08501,4611.7,4611.6,0.4176]
[1758222293689,0.6949,4611.7,4611.6,0.4176]
[1758222293898,0.6949,4611.7,4611.6,0.6093]
[1758222294095,0.6949,4611.7,4611.6,0.9001]
[1758222296196,1.08501,4611.7,4611.6,0.9001]
[1758222296894,0.6949,4611.7,4611.6,0.9001]
[1758222297100,1.08501,4611.7,4611.6,0.9001]
[1758222298800,1.08501,4611.7,4611.6,0.6811]
[1758222298995,1.08501,4611.7,4611.6,0.3903]
[1758222299202,1.08501,4611.7,4611.6,0.6093]
[1758222300202,0.39011,4611.6,4611.5,0.0216]
[1758222300502,1.11961,4611.6,4611.5,0.219]
[1758222301092,0.39013,4611.5,4611.3,0.02168609]
[1758222301290,0.7295,4611.4,4611.3,0.02168609]
[1758222301593,0.7295,4611.4,4611.3,0.44218609]
[1758222302502,1.11963,4611.4,4611.3,0.44218609]
[1758222303201,1.11963,4611.4,4611.3,0.92468609]
[1758222303704,1.11963,4611.4,4611.3,0.63388609]
[1758222303896,1.11963,4611.4,4611.3,0.24068609]
[1758222304298,1.11963,4611.4,4611.3,0.44218609]
[1758222304604,1.11963,4611.4,4611.3,0.92468609]
[1758222306506,0.7295,4611.4,4611.3,0.92468609]
[1758222306704,1.11963,4611.4,4611.3,0.92468609]
[1758222308298,1.11963,4611.4,4611.3,0.63388609]
[1758222308503,1.11963,4611.4,4611.3,0.93188609]
[1758222312409,0.39012,4611.5,4611.3,0.93188609]
[1758222312607,0.69852,4611.5,4611.4,0.7029]
[1758222313109,0.3084,4611.5,4611.4,0.7029]
[1758222313405,0.39006,4612.3,4611.9,0.298]
[1758222313596,0.97497,4613.2,4612.3,0.4049]
[1758222313801,0.2106,4612.5,4612.4,0.9219]
[1758222315602,0.519,4612.5,4612.4,0.9219]
[1758222316299,0.7292,4612.5,4612.4,0.9219]
[1758222317312,0.7292,4612.5,4612.4,0.7029]
[1758222317610,0.7292,4612.5,4612.4,0.9219]
[1758222319315,0.519,4612.5,4612.4,0.9219]
[1758222319705,0.3084,4612.8,4612.7,0.4049]
[1758222319904,0.519,4612.8,4612.7,0.9219]
[1758222322416,1.11921,4612.8,4612.7,0.9219]
[1758222322711,1.11921,4612.8,4612.7,0.7029]
[1758222322915,1.11921,4612.8,4612.5,0.1458]
[1758222322916,0.81083,4612.6,4612.5,0.0216]
[1758222323216,1.11923,4612.6,4612.5,0.2406]
[1758222325512,1.11923,4612.6,4612.5,0.4434]
[1758222325714,1.11923,4612.6,4612.5,0.7414]
[1758222326611,0.519,4612.6,4612.5,0.9219]
[1758222326809,1.11923,4612.6,4612.5,0.9219]
[1758222329519,1.11923,4612.6,4612.5,0.219]
[1758222330116,0.7292,4612.6,4612.5,0.9219]
[1758222332922,1.11923,4612.6,4612.5,0.9219]
[1758222335622,0.7292,4612.6,4612.5,0.9219]
[1758222337024,1.11923,4612.6,4612.5,0.9219]
[1758222339922,0.7292,4612.6,4612.5,0.9219]
[1758222340828,1.11923,4612.6,4612.5,0.9219]
[1758222341022,0.7292,4612.6,4612.5,0.219]
[1758222341824,1.11923,4612.6,4612.5,0.219]
[1758222342023,0.7292,4612.6,4612.5,0.219]
[1758222342226,0.3955,4612.4,4612.3,0.5189]
[1758222342425,0.6862,4612.4,4612.3,0.7379]
[1758222342723,0.6862,4612.4,4612.3,0.7163]
[1758222344320,0.6862,4612.4,4612.3,0.9288]
[1758222344526,0.6862,4612.4,4612.3,1.31885]
[1758222347832,0.6862,4612.4,4612.3,0.9288]
[1758222348833,0.6862,4612.4,4612.3,1.31885]
[1758222349030,0.6862,4612.4,4612.3,0.9288]
[1758222349234,0.6862,4612.4,4612.3,1.31885]
[1758222349733,0.6862,4612.4,4612.3,1.31785]
[1758222352731,0.6862,4612.4,4612.3,1.09985]
[1758222352925,0.6862,4612.4,4612.3,1.31785]
[1758222353129,0.2907,4612.3,4612.1,37.34325094]
[1758222353331,0.6862,4612.3,4612.2,0.218]
[1758222353525,0.2907,4612.2,4612.1,35.1446]
[1758222353831,0.68076,4612.2,4612.1,35.341]
[1758222354035,0.2907,4612.2,4612.1,35.341]
[1758222354833,0.2907,4612.2,4612.1,35.6496]
[1758222355136,0.2907,4612.2,4612.1,36.03967]
[1758222355342,0.6963,4612.2,4612.1,1.10867]
[1758222355634,0.6963,4612.2,4612.1,0.7186]
[1758222356031,0.6963,4612.2,4612.1,1.10867]
[1758222356429,0.6963,4612.2,4612.1,0.7186]
[1758222357136,0.6963,4612.2,4612.1,0.9206]
[1758222357437,0.6963,4612.2,4612.1,1.31067]
[1758222358433,0.6963,4612.2,4612.1,1.09267]
[1758222358739,0.6963,4612.2,4612.1,1.31067]
[1758222359643,0.7068,4612.9,4612.8,0.7026]
[1758222359835,0.7068,4612.9,4612.8,0.9206]
[1758222360142,1.0968,4612.9,4612.8,0.9206]
[1758222362339,0.7068,4612.9,4612.8,0.9206]
[1758222362539,1.0968,4612.9,4612.8,0.9206]
[1758222364240,0.7068,4613.4,4613.3,0.7026]
[1758222364443,1.09676,4613.4,4613.3,0.9206]
[1758222364936,1.09676,4613.4,4613.3,0.41]
[1758222365735,1.09676,4613.4,4613.3,0.218]
[1758222372550,1.09676,4613.4,4613.3,0.7055]
[1758222373148,1.09676,4613.4,4613.3,1.09547]
[1758222373447,1.09676,4613.4,4613.3,1.29487]
[1758222373647,0.7068,4613.4,4613.3,1.29487]
[1758222373840,0.308,4613.9,4613.4,0.38995]
[1758222374043,0.7134,4613.9,4613.8,1.07683]
[1758222374639,0.7134,4613.9,4613.8,0.6869]
[1758222379849,1.10332,4613.9,4613.8,0.6869]
[1758222387445,1.10334,4613.7,4613.6,0.0216]
[1758222387851,1.10334,4613.7,4612.4,7.16905094]
[1758222387852,0.4054,4612.7,4612.6,0.4875]
[1758222388159,0.7134,4612.7,4612.6,0.9049]
[1758222389249,0.7134,4612.7,4612.6,0.218]
[1758222389452,1.10345,4612.4,4612.3,0.6869]
[1758222389653,1.10345,4612.4,4612.3,0.9049]
[1758222390956,0.7134,4612.4,4612.3,0.9049]
[1758222391457,0.90143,4612.7,4612.6,0.6869]
[1758222393455,0.51,4612.7,4612.3,0.218]
[1758222393756,0.7134,4612.4,4612.3,0.9049]
[1758222394662,0.5114,4612.4,4612.3,0.9049]
[1758222394854,0.7134,4612.9,4612.8,0.6869]
[1758222395057,0.7134,4612.9,4612.8,0.9049]
[1758222396062,0.5114,4612.9,4612.8,0.9049]
[1758222398163,0.2034,4612.9,4612.8,0.9049]
[1758222398460,1.07156,4613.4,4613.3,0.7196]
[1758222398660,1.07156,4613.4,4613.3,0.9376]
[1758222399757,1.07156,4613.4,4613.3,0.5253]
[1758222399962,1.07156,4613.4,4613.3,0.218]
[1758222402663,0.6816,4613.4,4613.3,0.7268]
[1758222402856,0.6816,4613.4,4613.3,0.9376]
[1758222403261,0.192,4613.4,4613.3,1.32757]
[1758222403661,0.87285,4613.6,4613.5,0.8471]
[1758222403861,1.07155,4613.6,4613.5,0.7196]
[1758222406570,1.07158,4613.2,4613.1,0.2231]
[1758222406859,0.39001,4612.8,4612.6,0.69733]
[1758222407061,0.6816,4612.7,4612.6,0.5088]
[1758222407261,0.6816,4612.7,4612.6,1.11683]
[1758222407464,0.6816,4612.7,4612.6,0.7268]
[1758222407967,0.1188,4613.0,4612.3,0.5088]
[1758222407968,1.07165,4612.4,4612.3,0.5088]
[1758222408165,0.3901,4611.9,4611.6,0.3073]
[1758222408468,0.6816,4611.6,4611.5,0.7196]
[1758222408665,0.6816,4611.6,4611.5,0.9376]
[1758222408873,0.6816,4611.6,4611.5,1.0651]
[1758222412369,0.6816,4611.6,4611.5,0.9376]
[1758222416271,0.6816,4611.6,4611.5,0.7268]
[1758222417371,0.6816,4611.6,4611.5,0.4195]
[1758222417673,1.07171,4611.6,4611.5,0.4195]
[1758222417868,1.07171,4611.6,4611.3,0.35788609]
[1758222417869,0.6816,4611.6,4611.3,0.35788609]
[1758222418070,1.09403,4611.4,4611.3,0.35788609]
[1758222418268,1.09403,4611.4,4611.3,0.57588609]
[1758222418463,1.09403,4611.4,4611.3,0.75388609]
[1758222419563,1.09403,4611.4,4611.3,0.96238609]
[1758222419768,0.7039,4611.4,4611.3,0.96238609]
[1758222421374,0.7039,4611.4,4611.3,0.74438609]
[1758222421578,1.09403,4611.4,4611.3,0.96238609]
[1758222423568,1.09403,4611.4,4611.3,0.74438609]
[1758222423774,1.09403,4611.4,4611.3,0.96238609]
[1758222424176,1.09403,4611.4,4611.3,0.74438609]
[1758222424375,1.09403,4611.4,4611.3,0.75388609]
[1758222426274,1.09403,4611.4,4611.3,0.23968609]
[1758222435486,1.09403,4611.4,4611.3,0.74428609]
[1758222435882,1.09403,4611.4,4611.3,0.23968609]
[1758222438378,1.09403,4611.4,4611.3,0.74428609]
[1758222440289,1.09403,4611.4,4611.3,0.95618609]
[1758222442189,1.09403,4611.4,4611.3,0.74428609]
[1758222442887,1.09403,4611.4,4611.3,0.23968609]
[1758222445791,1.09403,4611.4,4611.3,0.53388609]
[1758222446292,1.09403,4611.4,4611.3,0.23968609]
[1758222446688,1.09403,4611.4,4611.3,0.02168609]
[1758222446892,0.6565,4611.5,4611.1,0.0216]
[1758222446893,1.08795,4611.2,4611.1,0.0216]
[1758222447292,0.89332,4610.3,4610.2,0.7165]
[1758222447494,1.08802,4610.3,4610.2,0.9345]
[1758222450990,0.6978,4610.3,4610.2,0.9345]
[1758222451190,0.6978,4610.3,4610.2,1.32473]
[1758222451387,0.7032,4610.4,4610.3,0.7165]
[1758222453299,0.2997,4610.6,4610.3,0.7165]
[1758222453494,0.2997,4610.9,4610.6,0.2942]
[1758222453697,1.08797,4610.9,4610.8,0.7165]
[1758222462504,0.8169,4611.0,4610.9,1.11557]
[1758222462702,1.20706,4611.0,4610.9,0.7254]
[1758222463102,0.8169,4611.0,4610.9,0.7254]
[1758222464705,0.8169,4611.0,4610.9,1.11557]
[1758222465211,1.10198,4610.8,4610.7,0.4303]
[1758222465605,1.102,4610.6,4610.5,0.2123]
[1758222467412,1.102,4610.6,4610.5,0.5166]
[1758222469005,1.102,4610.6,4610.5,0.7254]
[1758222474513,1.102,4610.6,4610.5,0.5166]
[1758222474721,1.102,4610.6,4610.5,0.2123]
[1758222475210,0.9402,4611.0,4610.5,1.13649999]
[1758222475211,0.8169,4611.0,4610.5,1.13649999]
[1758222475410,0.8169,4611.0,4610.9,1.09547]
[1758222475610,0.8169,4611.0,4610.9,0.9233]
[1758222475909,0.8169,4611.0,4610.9,5.53035]
[1758222476710,0.8169,4611.0,4610.9,5.31347]
[1758222476911,0.8169,4611.0,4610.9,5.53035]
[1758222477709,0.8169,4611.0,4610.9,5.31347]
[1758222478918,0.8169,4611.0,4610.9,4.9233]
[1758222479614,0.97504,4612.8,4610.9,4.9233]
[1758222479615,0.2116,4611.9,4610.9,4.218]
[1758222479815,0.2116,4611.7,4610.9,2.11205094]
[1758222480015,0.3106,4611.4,4611.3,0.39014]
[1758222480221,0.3106,4611.4,4611.3,0.60814]
[1758222480613,0.3106,4611.4,4611.3,0.218]
[1758222480815,0.7341,4611.4,4611.3,0.218]
[1758222481016,0.6447,4611.0,4610.9,0.39017]
[1758222481218,0.6447,4611.0,4610.9,0.60817]
[1758222481520,0.4331,4611.0,4610.9,0.60817]
[1758222482922,0.8913,4611.4,4611.2,0.39015]
[1758222483125,0.3341,4612.0,4611.9,0.4012]
[1758222483320,0.3341,4612.0,4611.9,0.6192]
[1758222483721,0.546,4612.0,4611.9,0.6192]
[1758222484722,0.546,4612.0,4611.9,0.218]
[1758222485126,0.8566,4612.0,4611.9,0.218]
[1758222485528,0.5222,4611.1,4611.0,0.79136]
[1758222485727,0.5222,4611.1,4611.0,0.94736]
[1758222486826,0.718,4611.1,4611.0,0.2028]
[1758222487023,0.1225,4611.5,4610.4,2.30445094]
[1758222487024,0.8256,4610.5,4610.4,2.30445094]
[1758222487228,0.8256,4610.5,4610.4,0.6284]
[1758222487730,0.4342,4610.5,4610.4,0.7599]
[1758222488030,0.6298,4610.5,4610.4,0.7599]
[1758222488420,0.6298,4610.5,4610.4,0.6284]
[1758222489226,0.8256,4610.5,4610.4,0.4104]
[1758222489431,0.8256,4610.5,4610.4,0.6284]
[1758222493028,0.8256,4610.5,4610.4,1.01861]
[1758222494129,0.8256,4610.5,4610.4,1.15011]
[1758222494130,0.6298,4610.5,4610.4,1.15011]
[1758222494527,0.6298,4610.5,4610.4,1.01861]
[1758222495039,0.8256,4610.5,4610.4,1.01861]
[1758222496039,0.6298,4610.5,4610.4,1.15011]
[1758222497541,0.3128,4610.9,4610.8,0.93208]
[1758222497740,0.90403,4611.5,4611.4,0.1999]
[1758222497942,0.90403,4611.5,4611.4,0.4179]
[1758222498239,0.90403,4611.5,4611.4,0.218]
[1758222498442,1.21683,4611.5,4611.4,0.218]
[1758222500440,0.8267,4611.5,4611.4,0.218]
[1758222500648,1.21682,4611.5,4611.4,0.218]
[1758222502937,0.8267,4611.5,4611.4,0.6284]
[1758222503141,0.1214,4612.5,4611.4,0.7599]
[1758222503342,0.3914,4612.4,4612.3,0.7117]
[1758222503643,0.3914,4612.4,4612.3,0.9297]
[1758222504640,0.3914,4612.4,4612.3,0.6293]
[1758222504835,0.3914,4612.4,4612.3,0.218]
[1758222505233,0.7042,4612.4,4612.3,0.4179]
[1758222507638,0.7042,4612.4,4612.3,0.7183]
[1758222508742,0.7042,4612.4,4612.3,0.9297]
[1758222510246,1.09425,4612.4,4612.3,0.9297]
[1758222514645,0.5084,4612.4,4612.3,0.9297]
[1758222515045,0.7042,4612.4,4612.3,0.9297]
[1758222518753,1.09425,4612.4,4612.3,0.9297]
[1758222520355,0.7042,4612.4,4612.3,0.9297]
[1758222520650,1.09425,4612.4,4612.3,0.9297]
[1758222534565,1.09425,4612.4,4612.3,0.6293]
[1758222535166,1.09425,4612.4,4612.3,0.9356]
[1758222536768,1.09425,4612.4,4612.3,0.6293]
[1758222537669,1.09425,4612.4,4612.3,0.9356]
[1758222541380,1.09425,4612.4,4612.3,0.4179]
[1758222541877,1.09425,4612.4,4612.3,0.7242]
[1758222542478,1.09425,4612.4,4612.3,0.9231]
[1758222543069,1.09425,4612.4,4612.3,0.4179]
[1758222543274,1.09425,4612.4,4612.3,0.218]
[1758222545581,1.09425,4612.4,4612.3,0.419]
[1758222546077,1.09425,4612.4,4612.3,0.7192]
[1758222547786,1.09425,4612.4,4612.3,0.419]
[1758222548472,1.09425,4612.4,4612.3,0.218]
[1758222550773,1.09425,4612.4,4612.3,0.4308]
[1758222552684,1.09425,4612.4,4612.3,0.218]
[1758222552890,1.09466,4612.2,4612.1,0.0216]
[1758222553178,1.09466,4612.2,4612.0,0.218]
[1758222553179,0.39007,4612.1,4612.0,0.218]
[1758222553378,1.09467,4612.1,4612.0,0.218]
[1758222553574,1.31149,4612.1,4612.0,0.218]
[1758222553777,1.09467,4612.1,4612.0,0.218]
[1758222554474,0.68501,4611.6,4611.5,35.133]
[1758222554684,0.68501,4611.6,4611.5,35.351]
[1758222555085,0.68501,4611.6,4611.5,35.6512]
[1758222556586,0.68501,4611.6,4611.5,35.351]
[1758222557883,0.68501,4611.6,4611.5,35.6512]
[1758222561287,0.2949,4611.6,4611.5,35.6512]
[1758222561491,0.68501,4611.6,4611.5,35.7712]
[1758222561887,0.39011,4611.6,4611.5,35.7712]
[1758222562290,0.39011,4611.7,4611.6,0.3002]
[1758222562593,0.39011,4611.7,4611.6,0.9413]
[1758222563190,0.89395,4612.4,4612.3,0.4231]
[1758222563389,1.11077,4612.4,4612.3,0.9413]
[1758222563691,1.09465,4612.4,4612.3,0.9413]
[1758222569492,1.09465,4612.4,4612.3,0.218]
[1758222570799,1.09465,4612.4,4612.3,0.4308]
[1758222571000,1.09465,4612.4,4612.3,0.731]
[1758222571997,0.7046,4612.4,4612.3,1.33135]
[1758222572197,0.39002,4612.8,4612.6,0.39003]
[1758222572395,0.59901,4612.8,4612.7,0.7285]
[1758222572598,0.59901,4612.8,4612.7,0.9413]
[1758222572898,0.38997,4613.3,4612.8,0.3002]
[1758222573100,0.38997,4613.3,4612.7,0.218]
[1758222573101,0.68487,4613.3,4613.2,0.7233]
[1758222573302,0.89387,4613.3,4613.2,0.9413]
[1758222573703,1.09457,4613.3,4613.2,0.9413]
[1758222574198,0.59897,4613.3,4613.2,0.218]
[1758222574402,0.59897,4613.3,4613.2,0.9413]
[1758222574403,1.09457,4613.3,4613.2,0.9413]
[1758222574799,0.38997,4613.3,4613.2,0.9413]
[1758222576200,0.2949,4613.5,4613.2,0.9413]
[1758222576201,0.38996,4613.5,4613.4,0.4195]
[1758222576401,0.70216,4613.5,4613.4,0.7227]
[1758222576600,0.90566,4613.5,4613.4,0.7227]
[1758222578000,0.1184,4614.5,4613.4,0.7227]
[1758222578001,0.91417,4614.5,4614.4,0.7227]
[1758222578206,0.38986,4614.6,4614.5,0.3326]
[1758222578400,0.59336,4614.6,4614.5,0.543]
[1758222578606,0.90556,4614.6,4614.5,0.543]
[1758222578805,0.90556,4614.6,4614.5,0.8462]
[1758222580305,0.5157,4614.6,4614.5,0.8462]
[1758222580500,0.38985,4614.7,4614.5,0.8462]
[1758222580700,0.38985,4614.7,4614.6,0.7227]
[1758222581104,0.70204,4614.9,4614.6,0.4195]
[1758222581307,0.38984,4614.8,4614.7,0.3032]
[1758222581505,0.38984,4614.8,4614.7,0.7227]
[1758222582009,0.3122,4614.9,4614.7,0.4195]
[1758222582204,0.3122,4614.9,4614.5,0.1235]
[1758222582205,0.70204,4614.9,4614.8,0.7227]
[1758222582405,0.90554,4614.9,4614.8,0.7227]
[1758222583004,0.3122,4615.1,4614.9,0.3032]
[1758222583201,0.90552,4615.1,4615.0,0.4195]
[1758222583402,0.90552,4615.1,4615.0,0.7227]
[1758222584008,1.10792,4615.1,4615.0,0.7227]
[1758222587609,1.10792,4615.1,4615.0,0.4195]
[1758222587809,1.10792,4615.1,4615.0,0.2104]
[1758222593413,1.10792,4615.1,4614.7,0.3032]
[1758222593414,0.38984,4614.8,4614.7,0.3032]
[1758222593615,1.10794,4614.8,4614.7,0.5136]
[1758222595214,1.10794,4614.8,4614.7,0.2104]
[1758222596715,1.10794,4614.8,4614.7,0.5005]
[1758222597412,1.10794,4614.8,4614.4,0.218]
[1758222597413,0.5857,4614.1,4614.0,0.7989]
[1758222597617,0.8992,4614.1,4614.0,1.0169]
[1758222597816,1.0983,4614.1,4614.0,0.6754]
[1758222598022,1.0983,4614.1,4614.0,0.8934]
[1758222598223,1.0983,4614.1,4614.0,0.6754]
[1758222598424,1.0983,4614.1,4614.0,0.8934]
[1758222600325,0.7084,4614.1,4614.0,0.8934]
[1758222600525,0.5093,4614.1,4614.0,1.0165]
[1758222600822,0.8992,4614.1,4614.0,1.0165]
[1758222601426,1.0983,4614.1,4614.0,0.8934]
[1758222602225,1.0983,4614.1,4614.0,0.6754]
[1758222602422,0.38999,4613.2,4613.1,0.1936]
[1758222602622,1.09839,4613.2,4613.1,0.6033]
[1758222603128,1.09839,4613.2,4613.1,0.8934]
[1758222603724,0.5093,4613.2,4613.1,0.8934]
[1758222603928,0.38997,4613.4,4613.1,0.8934]
[1758222603929,0.38995,4613.5,4613.4,0.6754]
[1758222605132,0.1236,4614.0,4613.4,0.6754]
[1758222605133,0.1236,4614.0,4613.4,0.3853]
[1758222605331,0.58574,4613.7,4613.5,0.1231]
[1758222605524,0.89924,4613.7,4613.6,0.6754]
[1758222610833,1.09204,4613.7,4613.6,0.6754]
[1758222611233,1.09204,4613.7,4613.6,0.8934]
[1758222614834,0.5093,4613.7,4613.6,0.8934]
[1758222615039,0.89924,4613.7,4613.6,0.8934]
[1758222616734,1.09204,4613.7,4613.6,0.8934]
[1758222618145,0.7021,4613.7,4613.6,0.8934]
[1758222618440,1.09204,4613.7,4613.6,0.8934]
[1758222619641,1.09204,4613.7,4613.6,0.4116]
[1758222619940,1.09204,4613.7,4613.6,0.7118]
[1758222620441,1.09204,4613.7,4613.6,0.9105]
[1758222621242,0.7021,4613.7,4613.6,0.9105]
[1758222621439,1.09204,4613.7,4613.6,0.9105]
[1758222622236,0.7021,4613.7,4613.6,0.9105]
[1758222623038,1.09204,4613.7,4613.6,0.9105]
[1758222623343,0.7021,4613.7,4613.6,0.9105]
[1758222624238,0.7021,4613.7,4613.6,1.30044]
[1758222624443,0.5093,4613.7,4613.6,1.30044]
[1758222625042,0.5093,4613.7,4613.6,0.9105]
[1758222625449,0.7021,4613.7,4613.6,0.9105]
[1758222625945,0.7021,4613.7,4613.6,1.30044]
[1758222626946,0.7021,4613.7,4613.6,0.9105]
[1758222627442,1.09204,4613.7,4613.6,0.9105]
[1758222627637,0.90075,4613.5,4613.1,1.94521207]
[1758222627841,0.38996,4613.4,4613.2,0.218]
[1758222628042,0.3852,4613.3,4613.2,0.4285]
[1758222628340,0.6778,4613.3,4613.2,0.7287]
[1758222629546,1.06777,4613.3,4613.2,0.4285]
[1758222629939,0.6778,4613.3,4613.2,0.4285]
[1758222630135,0.6778,4613.3,4613.2,0.7287]
[1758222630343,0.1256,4613.0,4612.9,2.45591207]
[1758222630644,0.8034,4613.0,4612.9,1.3174]
[1758222630845,0.6778,4613.0,4612.9,1.3174]
[1758222631044,0.6778,4613.0,4612.9,3.26261207]
[1758222631246,0.485,4613.0,4612.9,3.26261207]
[1758222632150,0.485,4613.0,4612.9,1.3174]
[1758222635752,1.1953,4613.0,4612.9,2.65866357]
[1758222635953,1.1953,4613.0,4612.9,0.9274]
[1758222636253,0.8053,4613.0,4612.9,0.9274]
[1758222640256,0.485,4613.0,4612.9,1.3174]
[1758222641152,0.6852,4613.0,4612.9,0.9274]
[1758222642055,0.6852,4613.0,4612.9,1.3174]
[1758222642257,0.6852,4613.0,4612.9,0.9274]
[1758222642450,0.6852,4613.0,4612.9,1.3174]
[1758222643555,0.6852,4613.0,4612.9,0.9274]
[1758222644056,0.6852,4613.0,4612.9,1.3174]
[1758222644257,0.6852,4613.0,4612.9,0.9274]
[1758222644556,0.6852,4613.0,4612.9,1.3174]
[1758222644758,0.8127,4613.0,4612.9,0.9274]
[1758222645447,0.8127,4613.0,4612.9,1.3174]
[1758222646358,0.6852,4613.0,4612.9,1.3174]
[1758222646558,0.6852,4613.0,4612.9,1.0994]
[1758222646759,0.6852,4613.0,4612.9,1.3174]
[1758222650061,0.8127,4613.0,4612.9,0.9274]
[1758222650261,0.8127,4613.0,4612.9,0.4285]
[1758222650455,0.8127,4613.0,4612.9,0.8185]
[1758222650760,0.8127,4613.0,4612.9,1.1102]
[1758222650960,0.8127,4613.0,4612.9,1.3191]
[1758222651358,0.8127,4613.0,4612.9,0.7111]
[1758222651560,0.8127,4613.0,4612.9,0.9291]
[1758222652256,0.8127,4613.0,4612.9,1.3191]
[1758222656365,0.8127,4613.0,4612.9,1.1011]
[1758222656566,0.8127,4613.0,4612.9,1.3191]
[1758222657769,0.485,4613.0,4612.9,1.3191]
[1758222657962,1.1609,4613.1,4613.0,1.0933]
[1758222659865,1.1609,4613.1,4613.0,0.7033]
[1758222660267,1.1609,4613.1,4613.0,1.0368]
[1758222664568,1.3626,4613.1,4613.0,0.9213]
[1758222665479,1.1609,4613.1,4613.0,1.0368]
[1758222667579,1.3626,4613.1,4613.0,0.9213]
[1758222667779,1.75259,4613.1,4613.0,0.9213]
[1758222668078,1.75259,4613.1,4613.0,0.425]
[1758222671272,0.58481,4612.8,4612.7,0.2104]
[1758222671472,0.8336,4612.5,4612.4,2.15966357]
[1758222671679,0.8336,4612.5,4612.4,0.7235]
[1758222672384,0.8336,4612.5,4612.4,1.32335]
[1758222672580,0.8336,4612.5,4612.4,0.9333]
[1758222672780,0.7085,4612.5,4612.4,0.9333]
[1758222675185,1.2388,4612.5,4612.4,0.9333]
[1758222676382,1.3639,4612.5,4612.4,0.9333]
[1758222677485,0.70665,4612.3,4612.2,1.94926357]
[1758222677689,0.6554,4612.5,4611.7,2.72329691]
[1758222677690,1.0986,4611.8,4611.7,2.72329691]
[1758222677891,1.0986,4611.8,4611.7,0.218]
[1758222678590,0.39013,4611.4,4611.2,0.2951]
[1758222678889,0.7085,4611.3,4611.2,0.5055]
[1758222679091,0.7085,4611.3,4611.2,0.7235]
[1758222679283,0.7085,4611.3,4611.2,0.9333]
[1758222681183,0.3166,4612.0,4611.2,0.9333]
[1758222681390,0.90148,4612.0,4611.9,0.7153]
[1758222681591,0.90148,4612.0,4611.9,0.9333]
[1758222681792,1.09858,4612.0,4611.9,0.9333]
[1758222682795,0.7085,4612.0,4611.9,0.9333]
[1758222683291,0.3166,4612.3,4611.9,0.9333]
[1758222683497,1.09855,4612.3,4612.2,0.7153]
[1758222683688,1.09855,4612.3,4612.2,0.9333]
[1758222686600,0.1948,4612.3,4612.2,0.9333]
[1758222686810,0.5114,4612.3,4612.2,0.9333]
[1758222687496,0.7085,4612.3,4612.2,0.9333]
[1758222689296,0.7085,4612.3,4612.2,0.218]
[1758222689596,0.1948,4612.1,4612.0,0.5055]
[1758222689795,0.7085,4612.1,4612.0,0.7235]
[1758222690402,0.7085,4612.1,4612.0,0.9333]
[1758222690600,1.09857,4612.1,4612.0,0.218]
[1758222691000,0.3919,4611.8,4611.1,0.2951]
[1758222691205,0.5114,4611.3,4611.2,1.32344]
[1758222691402,0.5114,4611.3,4611.2,1.54029]
[1758222691602,0.7085,4611.9,4611.8,0.7153]
[1758222691900,0.7085,4611.9,4611.8,0.9333]
[1758222692107,1.09859,4611.9,4611.8,0.9333]
[1758222692301,1.09859,4611.9,4611.8,0.6382]
[1758222692508,1.92949,4611.9,4611.8,0.218]
[1758222693304,1.5394,4611.9,4611.8,0.4284]
[1758222693500,0.3919,4611.3,4611.2,0.4202]
[1758222693704,0.7085,4611.3,4611.2,0.9333]
[1758222698410,0.67741,4611.7,4611.2,1.02835]
[1758222698611,1.09511,4611.7,4611.6,0.7074]
[1758222698812,1.09511,4611.7,4611.6,0.9254]
[1758222699012,0.8309,4611.9,4611.6,0.9254]
[1758222699013,1.22099,4611.9,4611.6,0.6191]
[1758222699215,0.4998,4611.8,4611.7,0.7074]
[1758222699914,0.8309,4611.9,4611.8,0.3063]
[1758222700113,1.1182,4611.9,4611.8,0.7074]
[1758222700315,0.8309,4611.9,4611.8,0.7074]
[1758222700807,0.8309,4611.9,4611.8,1.0975]
[1758222701113,0.7056,4612.3,4612.2,0.7074]
[1758222701414,0.7056,4612.3,4612.2,1.31546]
[1758222702408,0.7056,4612.3,4612.2,1.53227]
[1758222702917,0.7056,4612.3,4612.2,1.31546]
[1758222703911,1.3944,4612.3,4612.2,1.31546]
[1758222706616,1.6817,4612.3,4612.2,1.31546]
[1758222707906,1.3944,4612.3,4612.2,1.31546]
[1758222708716,1.8942,4612.3,4612.2,1.31546]
[1758222709318,1.8942,4612.3,4612.2,0.9254]
[1758222712122,2.0994,4612.3,4612.2,0.218]
[1758222712323,2.0994,4612.3,4611.9,0.39008]
[1758222712624,0.705,4612.2,4612.1,0.5088]
[1758222713922,0.705,4612.2,4612.1,0.7074]
[1758222715721,1.4488,4612.2,4612.1,0.7074]
[1758222716722,1.4488,4612.2,4612.1,0.4205]
[1758222717121,1.4488,4612.2,4612.1,0.7293]
[1758222717418,1.4488,4612.2,4612.1,0.4205]
[1758222717619,1.83886,4612.2,4612.1,0.218]